[Event "Titled Tuesday Blitz October 11 Early 2022"]
[White "Di Nicolantonio, Lucas"]
[Black "Papasimakopoulos, Alexandros"]
[WhiteFideId "680460"]
[BlackFideId "4244125"]
[WhiteElo "2381"]
[BlackElo "2357"]
[Result "1-0"]
[Round "02"]
[TimeControl "180+1"]
[Date "2022.10.12"]
[WhiteClock "0:00:20"]
[BlackClock "0:00:29"]

1. Nf3 {[%clk 0:03:00]}  Nf6 {[%clk 0:02:57]} 2. c4 {[%clk 0:03:01]}  b6 {[%clk 0:02:57]} 3. d4 {[%clk 0:02:58]}  e6 {[%clk 0:02:57]} 4. e3 {[%clk 0:02:58]}  Bb7 {[%clk 0:02:56]} 5. Bd3 {[%clk 0:02:59]}  Ne4 {[%clk 0:02:56]} 6. O-O {[%clk 0:02:58]}  d6 {[%clk 0:02:56]} 7. Nc3 {[%clk 0:02:58]}  f5 {[%clk 0:02:56]} 8. d5 {[%clk 0:02:53]}  Nxc3 {[%clk 0:02:45]} 9. bxc3 {[%clk 0:02:53]}  g6 {[%clk 0:02:46]} 10. Nd4 {[%clk 0:02:45]}  exd5 {[%clk 0:02:44]} 11. Bxf5 {[%clk 0:02:22]}  dxc4 {[%clk 0:02:36]} 12. e4 {[%clk 0:02:12]}  Nc6 {[%clk 0:02:20]} 13. Ne6 {[%clk 0:02:03]}  Qe7 {[%clk 0:02:17]} 14. Bg5 {[%clk 0:02:03]}  Qf7 {[%clk 0:02:15]} 15. Bh3 {[%clk 0:01:55]}  a6 {[%clk 0:02:00]} 16. f4 {[%clk 0:01:52]}  h6 {[%clk 0:01:52]} 17. Bh4 {[%clk 0:01:53]}  Bc8 {[%clk 0:01:35]} 18. Qd5 {[%clk 0:01:50]}  Bb7 {[%clk 0:01:31]} 19. Qd2 {[%clk 0:01:13]}  Bg7 {[%clk 0:01:28]} 20. f5 {[%clk 0:01:05]}  g5 {[%clk 0:01:29]} 21. f6 {[%clk 0:01:05]}  Bf8 {[%clk 0:01:27]} 22. Bg3 {[%clk 0:00:54]}  Rg8 {[%clk 0:01:27]} 23. Qd5 {[%clk 0:00:49]}  Rc8 {[%clk 0:01:11]} 24. Nxf8 {[%clk 0:00:42]}  Rxf8 {[%clk 0:01:07]} 25. Bxc8 {[%clk 0:00:38]}  Bxc8 {[%clk 0:01:02]} 26. Qxc6+ {[%clk 0:00:39]}  Qd7 {[%clk 0:01:00]} 27. Qxd7+ {[%clk 0:00:35]}  Bxd7 {[%clk 0:01:01]} 28. h4 {[%clk 0:00:28]}  Kf7 {[%clk 0:01:00]} 29. Rad1 {[%clk 0:00:25]}  Bg4 {[%clk 0:00:58]} 30. Rd4 {[%clk 0:00:24]}  b5 {[%clk 0:00:54]} 31. e5 {[%clk 0:00:24]}  Be6 {[%clk 0:00:47]} 32. exd6 {[%clk 0:00:24]}  c5 {[%clk 0:00:47]} 33. Rd2 {[%clk 0:00:22]}  Rd8 {[%clk 0:00:43]} 34. d7 {[%clk 0:00:20]}  b4 {[%clk 0:00:41]} 35. hxg5 {[%clk 0:00:16]}  hxg5 {[%clk 0:00:40]} 36. Bc7 {[%clk 0:00:16]}  Rxd7 {[%clk 0:00:40]} 37. Rxd7+ {[%clk 0:00:15]}  Bxd7 {[%clk 0:00:41]} 38. Bd6 {[%clk 0:00:15]}  bxc3 {[%clk 0:00:41]} 39. Bxc5 {[%clk 0:00:15]}  c2 {[%clk 0:00:38]} 40. Be3 {[%clk 0:00:15]}  g4 {[%clk 0:00:34]} 41. Rf4 {[%clk 0:00:14]}  Be6 {[%clk 0:00:33]} 42. Kf2 {[%clk 0:00:13]}  c3 {[%clk 0:00:32]} 43. Ra4 {[%clk 0:00:11]}  Kxf6 {[%clk 0:00:31]} 44. Rxa6 {[%clk 0:00:11]}  Ke5 {[%clk 0:00:31]} 45. Rxe6+ {[%clk 0:00:11]}  Kxe6 {[%clk 0:00:31]} 46. Kg3 {[%clk 0:00:11]}  Kd5 {[%clk 0:00:31]} 47. a4 {[%clk 0:00:11]}  Kc4 {[%clk 0:00:20]} 48. Kxg4 {[%clk 0:00:11]}  Kb4 {[%clk 0:00:20]} 49. Kf3 {[%clk 0:00:10]}  Kxa4 {[%clk 0:00:21]} 50. Ke2 {[%clk 0:00:11]}  Kb3 {[%clk 0:00:22]} 51. Kd3 {[%clk 0:00:10]}  Kb4 {[%clk 0:00:19]} 52. Kxc2 {[%clk 0:00:09]}  Kc4 {[%clk 0:00:20]} 53. g4 {[%clk 0:00:10]}  Kd5 {[%clk 0:00:20]} 54. g5 {[%clk 0:00:10]}  Ke5 {[%clk 0:00:21]} 55. Kxc3 {[%clk 0:00:10]}  Kf5 {[%clk 0:00:21]} 56. Kd2 {[%clk 0:00:11]}  Ke4 {[%clk 0:00:20]} 57. Ke2 {[%clk 0:00:12]}  Kf5 {[%clk 0:00:21]} 58. Kf3 {[%clk 0:00:13]}  Kg6 {[%clk 0:00:22]} 59. Kg4 {[%clk 0:00:14]}  Kg7 {[%clk 0:00:22]} 60. Kf5 {[%clk 0:00:14]}  Kh7 {[%clk 0:00:23]} 61. g6+ {[%clk 0:00:14]}  Kg7 {[%clk 0:00:23]} 62. Bd4+ {[%clk 0:00:15]}  Kg8 {[%clk 0:00:24]} 63. Kg5 {[%clk 0:00:15]}  Kf8 {[%clk 0:00:24]} 64. Kh6 {[%clk 0:00:15]}  Kg8 {[%clk 0:00:25]} 65. g7 {[%clk 0:00:15]}  Kf7 {[%clk 0:00:26]} 66. Kh7 {[%clk 0:00:16]}  Ke6 {[%clk 0:00:26]} 67. g8=Q+ {[%clk 0:00:17]}  Kf5 {[%clk 0:00:26]} 68. Bh8 {[%clk 0:00:17]}  Ke4 {[%clk 0:00:27]} 69. Kg7 {[%clk 0:00:18]}  Ke5 {[%clk 0:00:27]} 70. Qf7 {[%clk 0:00:18]}  Kd6 {[%clk 0:00:28]} 71. Qf6+ {[%clk 0:00:19]}  Kd5 {[%clk 0:00:29]} 72. Kf7 {[%clk 0:00:20]}  Kc5 {[%clk 0:00:29]} 73. Qe6 {[%clk 0:00:19]}  Kb5 {[%clk 0:00:29]} 74. Qc8 {[%clk 0:00:19]}  Kb4 {[%clk 0:00:28]} 75. Ke6 {[%clk 0:00:19]}  Kb5 {[%clk 0:00:29]} 76. Kd5 {[%clk 0:00:20]}  Kb4 {[%clk 0:00:29]} 77. Qc4+ {[%clk 0:00:20]}  Ka3 {[%clk 0:00:30]} 78. Qb5 {[%clk 0:00:19]}  Ka2 {[%clk 0:00:29]} 79. Qb2# {[%clk 0:00:20]} 1-0


[Site "https://www.chess.com"]

[Event "Titled Tuesday Blitz October 11 Early 2022"]
[White "Dilmukhametov, Artur"]
[Black "Devaev, Alexander"]
[WhiteFideId "24179922"]
[BlackFideId "4169395"]
[WhiteElo "2197"]
[BlackElo "2225"]
[Result "0-1"]
[Round "02"]
[TimeControl "180+1"]
[Date "2022.10.12"]
[WhiteClock "0:00:19"]
[BlackClock "0:00:26"]

1. e4 {[%clk 0:03:00]}  c6 {[%clk 0:01:49]} 2. Nc3 {[%clk 0:02:55]}  d5 {[%clk 0:01:46]} 3. Qf3 {[%clk 0:02:51]}  Nf6 {[%clk 0:01:39]} 4. e5 {[%clk 0:02:35]}  Ng8 {[%clk 0:01:39]} 5. d4 {[%clk 0:02:34]}  e6 {[%clk 0:01:37]} 6. Bd3 {[%clk 0:02:31]}  c5 {[%clk 0:01:37]} 7. Be3 {[%clk 0:02:28]}  cxd4 {[%clk 0:01:36]} 8. Bxd4 {[%clk 0:02:28]}  Nc6 {[%clk 0:01:37]} 9. Nge2 {[%clk 0:02:26]}  Nge7 {[%clk 0:01:32]} 10. O-O {[%clk 0:02:23]}  Ng6 {[%clk 0:01:33]} 11. Bb5 {[%clk 0:01:56]}  a6 {[%clk 0:01:31]} 12. Bxc6+ {[%clk 0:01:50]}  bxc6 {[%clk 0:01:31]} 13. Na4 {[%clk 0:01:44]}  Qc7 {[%clk 0:01:30]} 14. Nc5 {[%clk 0:01:42]}  Bxc5 {[%clk 0:01:17]} 15. Bxc5 {[%clk 0:01:40]}  Qxe5 {[%clk 0:01:18]} 16. Bd4 {[%clk 0:01:34]}  Qd6 {[%clk 0:00:37]} 17. Bxg7 {[%clk 0:01:32]}  Rg8 {[%clk 0:00:38]} 18. Bd4 {[%clk 0:01:28]}  e5 {[%clk 0:00:37]} 19. Bc3 {[%clk 0:01:25]}  d4 {[%clk 0:00:35]} 20. Bd2 {[%clk 0:01:24]}  Nh4 {[%clk 0:00:35]} 21. Qh5 {[%clk 0:01:14]}  Nxg2 {[%clk 0:00:36]} 22. Kh1 {[%clk 0:01:13]}  Qg6 {[%clk 0:00:31]} 23. Qxg6 {[%clk 0:01:11]}  Rxg6 {[%clk 0:00:30]} 24. Rg1 {[%clk 0:01:11]}  Nh4 {[%clk 0:00:30]} 25. Rxg6 {[%clk 0:01:10]}  hxg6 {[%clk 0:00:30]} 26. Rg1 {[%clk 0:01:09]}  Nf3 {[%clk 0:00:30]} 27. Rd1 {[%clk 0:01:06]}  Nxd2 {[%clk 0:00:30]} 28. Rxd2 {[%clk 0:01:06]}  Be6 {[%clk 0:00:31]} 29. b3 {[%clk 0:00:59]}  c5 {[%clk 0:00:32]} 30. c4 {[%clk 0:00:58]}  a5 {[%clk 0:00:31]} 31. f3 {[%clk 0:00:57]}  a4 {[%clk 0:00:31]} 32. Nc1 {[%clk 0:00:52]}  Ke7 {[%clk 0:00:30]} 33. Nd3 {[%clk 0:00:51]}  Kd6 {[%clk 0:00:29]} 34. Kg2 {[%clk 0:00:48]}  axb3 {[%clk 0:00:24]} 35. axb3 {[%clk 0:00:48]}  Ra3 {[%clk 0:00:24]} 36. Rb2 {[%clk 0:00:47]}  Bf5 {[%clk 0:00:25]} 37. Ne1 {[%clk 0:00:44]}  Be6 {[%clk 0:00:25]} 38. Nd3 {[%clk 0:00:43]}  f5 {[%clk 0:00:25]} 39. h4 {[%clk 0:00:36]}  e4 {[%clk 0:00:26]} 40. fxe4 {[%clk 0:00:36]}  fxe4 {[%clk 0:00:26]} 41. Nf4 {[%clk 0:00:35]}  Bf5 {[%clk 0:00:25]} 42. Kf2 {[%clk 0:00:30]}  Ke5 {[%clk 0:00:25]} 43. Ng2 {[%clk 0:00:26]}  e3+ {[%clk 0:00:24]} 44. Nxe3 {[%clk 0:00:23]}  dxe3+ {[%clk 0:00:24]} 45. Kxe3 {[%clk 0:00:23]}  Be6 {[%clk 0:00:20]} 46. Rb1 {[%clk 0:00:20]}  Bxc4 {[%clk 0:00:20]} 47. Kd2 {[%clk 0:00:17]}  Rxb3 {[%clk 0:00:21]} 48. Rxb3 {[%clk 0:00:17]}  Bxb3 {[%clk 0:00:21]} 49. Kc3 {[%clk 0:00:17]}  c4 {[%clk 0:00:22]} 50. Kb2 {[%clk 0:00:16]}  Kf4 {[%clk 0:00:22]} 51. Kc3 {[%clk 0:00:17]}  Kg4 {[%clk 0:00:23]} 52. Kd2 {[%clk 0:00:17]}  Kxh4 {[%clk 0:00:23]} 53. Ke3 {[%clk 0:00:18]}  g5 {[%clk 0:00:24]} 54. Kd4 {[%clk 0:00:18]}  g4 {[%clk 0:00:25]} 55. Kc3 {[%clk 0:00:19]}  g3 {[%clk 0:00:26]} 0-1


[Site "https://www.chess.com"]

[Event "Titled Tuesday Blitz October 11 Early 2022"]
[White "Dwilewicz, Katarzyna"]
[Black "Soto Vega, Jorge"]
[WhiteFideId "1148486"]
[BlackFideId "3800580"]
[WhiteElo "2023"]
[BlackElo "2263"]
[Result "1/2-1/2"]
[Round "02"]
[TimeControl "180+1"]
[Date "2022.10.12"]
[WhiteClock "0:00:08"]
[BlackClock "0:00:19"]

1. e4 {[%clk 0:03:00]}  d5 {[%clk 0:02:59]} 2. exd5 {[%clk 0:03:00]}  Qxd5 {[%clk 0:02:59]} 3. Nf3 {[%clk 0:03:01]}  Nf6 {[%clk 0:02:58]} 4. d4 {[%clk 0:03:00]}  c6 {[%clk 0:02:58]} 5. Be2 {[%clk 0:03:00]}  Bg4 {[%clk 0:02:57]} 6. O-O {[%clk 0:03:01]}  Nbd7 {[%clk 0:02:56]} 7. h3 {[%clk 0:03:01]}  Bh5 {[%clk 0:02:55]} 8. c4 {[%clk 0:02:58]}  Qa5 {[%clk 0:02:54]} 9. Nc3 {[%clk 0:02:58]}  e6 {[%clk 0:02:53]} 10. Bd2 {[%clk 0:02:56]}  Qc7 {[%clk 0:02:52]} 11. Be3 {[%clk 0:02:46]}  Bd6 {[%clk 0:02:49]} 12. Re1 {[%clk 0:02:46]}  O-O {[%clk 0:02:48]} 13. Qd2 {[%clk 0:02:46]}  a6 {[%clk 0:02:48]} 14. Rad1 {[%clk 0:02:36]}  Bb4 {[%clk 0:02:45]} 15. Qc2 {[%clk 0:02:33]}  Qa5 {[%clk 0:02:42]} 16. Bd2 {[%clk 0:02:24]}  b5 {[%clk 0:02:37]} 17. a3 {[%clk 0:02:20]}  Bxc3 {[%clk 0:02:31]} 18. Bxc3 {[%clk 0:02:20]}  Qc7 {[%clk 0:02:29]} 19. Bb4 {[%clk 0:02:15]}  Rfc8 {[%clk 0:02:26]} 20. b3 {[%clk 0:02:11]}  a5 {[%clk 0:02:19]} 21. Bc3 {[%clk 0:02:10]}  Qb8 {[%clk 0:02:17]} 22. Ne5 {[%clk 0:02:02]}  Bg6 {[%clk 0:02:15]} 23. Nxg6 {[%clk 0:01:58]}  hxg6 {[%clk 0:02:14]} 24. Bd3 {[%clk 0:01:46]}  a4 {[%clk 0:02:06]} 25. bxa4 {[%clk 0:01:38]}  bxc4 {[%clk 0:02:06]} 26. Bxc4 {[%clk 0:01:37]}  Nb6 {[%clk 0:02:06]} 27. Bb3 {[%clk 0:01:34]}  Qa7 {[%clk 0:02:05]} 28. a5 {[%clk 0:01:34]}  Nbd5 {[%clk 0:02:03]} 29. Bb4 {[%clk 0:01:27]}  Rab8 {[%clk 0:01:58]} 30. Rc1 {[%clk 0:00:49]}  Nxb4 {[%clk 0:01:56]} 31. axb4 {[%clk 0:00:48]}  Rxb4 {[%clk 0:01:57]} 32. Rxe6 {[%clk 0:00:45]}  Rcb8 {[%clk 0:01:48]} 33. Re3 {[%clk 0:00:42]}  Qxd4 {[%clk 0:01:43]} 34. Rd1 {[%clk 0:00:39]}  Qa7 {[%clk 0:01:33]} 35. Bc4 {[%clk 0:00:24]}  Qxa5 {[%clk 0:01:17]} 36. Re7 {[%clk 0:00:21]}  Rf8 {[%clk 0:01:12]} 37. Bb3 {[%clk 0:00:11]}  Qb6 {[%clk 0:01:09]} 38. Rd3 {[%clk 0:00:11]}  c5 {[%clk 0:00:53]} 39. Rg3 {[%clk 0:00:09]}  Nh5 {[%clk 0:00:24]} 40. Rxg6 {[%clk 0:00:08]}  Qd8 {[%clk 0:00:24]} 41. Re1 {[%clk 0:00:02]}  c4 {[%clk 0:00:24]} 42. Bxc4 {[%clk 0:00:03]}  Qd4 {[%clk 0:00:23]} 43. Bb3 {[%clk 0:00:02]}  Nf4 {[%clk 0:00:17]} 44. Rg4 {[%clk 0:00:02]}  Qd3 {[%clk 0:00:17]} 45. Qxd3 {[%clk 0:00:02]}  Nxd3 {[%clk 0:00:16]} 46. Rxb4 {[%clk 0:00:03]}  Nxb4 {[%clk 0:00:17]} 47. Bc4 {[%clk 0:00:04]}  Nc2 {[%clk 0:00:16]} 48. Re7 {[%clk 0:00:04]}  Nd4 {[%clk 0:00:16]} 49. f3 {[%clk 0:00:04]}  Nf5 {[%clk 0:00:17]} 50. Rc7 {[%clk 0:00:04]}  Nd6 {[%clk 0:00:16]} 51. Kf2 {[%clk 0:00:04]}  Nxc4 {[%clk 0:00:16]} 52. Rxc4 {[%clk 0:00:04]}  g6 {[%clk 0:00:17]} 53. g4 {[%clk 0:00:05]}  Kg7 {[%clk 0:00:18]} 54. f4 {[%clk 0:00:05]}  Rd8 {[%clk 0:00:19]} 55. Kf3 {[%clk 0:00:06]}  Rd3+ {[%clk 0:00:18]} 56. Kg2 {[%clk 0:00:06]}  Re3 {[%clk 0:00:18]} 57. Kf2 {[%clk 0:00:06]}  Rxh3 {[%clk 0:00:17]} 58. Rc6 {[%clk 0:00:06]}  Ra3 {[%clk 0:00:17]} 59. Rb6 {[%clk 0:00:05]}  Ra4 {[%clk 0:00:16]} 60. Kf3 {[%clk 0:00:05]}  Ra3+ {[%clk 0:00:17]} 61. Ke4 {[%clk 0:00:05]}  Rg3 {[%clk 0:00:17]} 62. g5 {[%clk 0:00:06]}  Rg1 {[%clk 0:00:17]} 63. Rb7 {[%clk 0:00:06]}  Re1+ {[%clk 0:00:17]} 64. Kf3 {[%clk 0:00:06]}  Rf1+ {[%clk 0:00:16]} 65. Ke3 {[%clk 0:00:06]}  Re1+ {[%clk 0:00:16]} 66. Kf3 {[%clk 0:00:07]}  Re6 {[%clk 0:00:16]} 67. Kg4 {[%clk 0:00:07]}  Ra6 {[%clk 0:00:17]} 68. Kf3 {[%clk 0:00:06]}  Ra4 {[%clk 0:00:17]} 69. Ke3 {[%clk 0:00:07]}  Ra5 {[%clk 0:00:17]} 70. Kf3 {[%clk 0:00:07]}  Ra3+ {[%clk 0:00:18]} 71. Ke4 {[%clk 0:00:07]}  Ra4+ {[%clk 0:00:18]} 72. Kf3 {[%clk 0:00:07]}  Ra1 {[%clk 0:00:19]} 73. Ke4 {[%clk 0:00:08]}  Re1+ {[%clk 0:00:19]} 74. Kf3 {[%clk 0:00:08]} 1/2-1/2


[Site "https://www.chess.com"]

[Event "Titled Tuesday Blitz October 11 Early 2022"]
[White "Fernandez Siles, Luis"]
[Black "Toncheva, Nadya"]
[WhiteFideId "2209420"]
[BlackFideId "2924056"]
[WhiteElo "2186"]
[BlackElo "2101"]
[Result "0-1"]
[Round "02"]
[TimeControl "180+1"]
[Date "2022.10.12"]
[WhiteClock "0:00:02"]
[BlackClock "0:00:30"]

1. e4 {[%clk 0:02:54]}  c5 {[%clk 0:02:59]} 2. Nf3 {[%clk 0:02:53]}  d6 {[%clk 0:03:00]} 3. d4 {[%clk 0:02:53]}  cxd4 {[%clk 0:03:00]} 4. Nxd4 {[%clk 0:02:53]}  Nf6 {[%clk 0:03:01]} 5. Nc3 {[%clk 0:02:53]}  Nc6 {[%clk 0:03:02]} 6. Bg5 {[%clk 0:02:52]}  e6 {[%clk 0:03:02]} 7. Qd2 {[%clk 0:02:52]}  a6 {[%clk 0:03:01]} 8. f3 {[%clk 0:02:52]}  Qc7 {[%clk 0:02:58]} 9. O-O-O {[%clk 0:02:52]}  Bd7 {[%clk 0:02:57]} 10. g4 {[%clk 0:02:52]}  b5 {[%clk 0:02:56]} 11. h4 {[%clk 0:02:39]}  Rc8 {[%clk 0:02:52]} 12. Kb1 {[%clk 0:02:38]}  Be7 {[%clk 0:02:49]} 13. Bxb5 {[%clk 0:02:22]}  axb5 {[%clk 0:02:48]} 14. Ndxb5 {[%clk 0:02:22]}  Qb8 {[%clk 0:02:47]} 15. Nxd6+ {[%clk 0:02:23]}  Bxd6 {[%clk 0:02:47]} 16. Qxd6 {[%clk 0:02:24]}  Qb7 {[%clk 0:02:22]} 17. Bxf6 {[%clk 0:01:17]}  gxf6 {[%clk 0:02:21]} 18. g5 {[%clk 0:00:57]}  fxg5 {[%clk 0:01:33]} 19. hxg5 {[%clk 0:00:52]}  Na5 {[%clk 0:01:30]} 20. Nd5 {[%clk 0:00:34]}  exd5 {[%clk 0:00:47]} 21. Qe5+ {[%clk 0:00:32]}  Be6 {[%clk 0:00:42]} 22. Qxh8+ {[%clk 0:00:25]}  Kd7 {[%clk 0:00:43]} 23. Qd4 {[%clk 0:00:18]}  Rc4 {[%clk 0:00:43]} 24. Qe5 {[%clk 0:00:12]}  Rb4 {[%clk 0:00:41]} 25. Rxh7 {[%clk 0:00:11]}  Nc4 {[%clk 0:00:41]} 26. Rxd5+ {[%clk 0:00:03]}  Bxd5 {[%clk 0:00:34]} 27. Qf5+ {[%clk 0:00:02]}  Kc7 {[%clk 0:00:30]} 0-1


[Site "https://www.chess.com"]

[Event "Titled Tuesday Blitz October 11 Early 2022"]
[White "Gilmanov, Mansur"]
[Black "Zemlyanskii, Ivan"]
[WhiteFideId "4166868"]
[BlackFideId "24249971"]
[WhiteElo "2377"]
[BlackElo "2107"]
[Result "0-1"]
[Round "02"]
[TimeControl "180+1"]
[Date "2022.10.12"]
[WhiteClock "0:00:01"]
[BlackClock "0:00:17"]

1. d4 {[%clk 0:03:00]}  Nf6 {[%clk 0:02:59]} 2. Bg5 {[%clk 0:03:00]}  c5 {[%clk 0:02:56]} 3. Bxf6 {[%clk 0:03:00]}  gxf6 {[%clk 0:02:54]} 4. d5 {[%clk 0:03:00]}  Qb6 {[%clk 0:02:43]} 5. Qc1 {[%clk 0:02:59]}  f5 {[%clk 0:02:43]} 6. c4 {[%clk 0:02:57]}  Qh6 {[%clk 0:02:43]} 7. e3 {[%clk 0:02:38]}  e5 {[%clk 0:02:40]} 8. Nc3 {[%clk 0:02:24]}  d6 {[%clk 0:02:39]} 9. Nge2 {[%clk 0:02:12]}  Nd7 {[%clk 0:02:29]} 10. Nb5 {[%clk 0:02:10]}  Kd8 {[%clk 0:02:23]} 11. Ng3 {[%clk 0:02:08]}  a6 {[%clk 0:02:15]} 12. Nc3 {[%clk 0:01:54]}  Nf6 {[%clk 0:02:14]} 13. Bd3 {[%clk 0:01:52]}  e4 {[%clk 0:02:14]} 14. Bc2 {[%clk 0:01:40]}  Be7 {[%clk 0:02:06]} 15. Nce2 {[%clk 0:01:32]}  Ng4 {[%clk 0:02:02]} 16. Nf4 {[%clk 0:01:29]}  Ne5 {[%clk 0:02:02]} 17. b4 {[%clk 0:01:16]}  cxb4 {[%clk 0:01:48]} 18. Rb1 {[%clk 0:01:15]}  a5 {[%clk 0:01:44]} 19. a3 {[%clk 0:01:16]}  Bd7 {[%clk 0:01:34]} 20. axb4 {[%clk 0:01:14]}  a4 {[%clk 0:01:34]} 21. c5 {[%clk 0:01:11]}  Rc8 {[%clk 0:01:29]} 22. O-O {[%clk 0:01:11]}  dxc5 {[%clk 0:01:12]} 23. bxc5 {[%clk 0:01:07]}  Rxc5 {[%clk 0:01:11]} 24. Rxb7 {[%clk 0:01:05]}  Bd6 {[%clk 0:01:10]} 25. Qb1 {[%clk 0:00:57]}  Qf6 {[%clk 0:01:07]} 26. Qb6+ {[%clk 0:00:51]}  Ke8 {[%clk 0:00:54]} 27. Rb8+ {[%clk 0:00:42]}  Ke7 {[%clk 0:00:54]} 28. Rxh8 {[%clk 0:00:21]}  Qxh8 {[%clk 0:00:54]} 29. Bb1 {[%clk 0:00:18]}  Qc8 {[%clk 0:00:52]} 30. h3 {[%clk 0:00:13]}  a3 {[%clk 0:00:48]} 31. Qa7 {[%clk 0:00:13]}  Rc7 {[%clk 0:00:44]} 32. Qa5 {[%clk 0:00:13]}  Qb8 {[%clk 0:00:43]} 33. Nfe2 {[%clk 0:00:08]}  Ra7 {[%clk 0:00:42]} 34. Qd2 {[%clk 0:00:07]}  Qb2 {[%clk 0:00:38]} 35. Qxb2 {[%clk 0:00:04]}  axb2 {[%clk 0:00:29]} 36. Nd4 {[%clk 0:00:05]}  Kf6 {[%clk 0:00:27]} 37. Nge2 {[%clk 0:00:06]}  Bc5 {[%clk 0:00:22]} 38. f4 {[%clk 0:00:04]}  Nc4 {[%clk 0:00:21]} 39. Kf2 {[%clk 0:00:04]}  Ra3 {[%clk 0:00:21]} 40. Nc2 {[%clk 0:00:03]}  Bxe3+ {[%clk 0:00:17]} 41. Nxe3 {[%clk 0:00:01]}  Nxe3 {[%clk 0:00:17]} 0-1


[Site "https://www.chess.com"]

[Event "Titled Tuesday Blitz October 11 Early 2022"]
[White "Hambleton, Aman"]
[Black "Pham, Le Thao Nguyen"]
[WhiteFideId "2606577"]
[BlackFideId "12401226"]
[WhiteElo "2538"]
[BlackElo "2282"]
[Result "1-0"]
[Round "02"]
[TimeControl "180+1"]
[Date "2022.10.12"]
[WhiteClock "0:00:15"]
[BlackClock "0:00:27"]

1. e4 {[%clk 0:02:59]}  g6 {[%clk 0:02:59]} 2. d4 {[%clk 0:02:39]}  Bg7 {[%clk 0:02:57]} 3. c4 {[%clk 0:02:14]}  d6 {[%clk 0:02:55]} 4. Nc3 {[%clk 0:02:06]}  Nf6 {[%clk 0:02:53]} 5. f3 {[%clk 0:01:58]}  Nbd7 {[%clk 0:02:49]} 6. Be3 {[%clk 0:01:54]}  b6 {[%clk 0:02:47]} 7. Bd3 {[%clk 0:01:52]}  Bb7 {[%clk 0:02:47]} 8. Nge2 {[%clk 0:01:52]}  e5 {[%clk 0:02:46]} 9. d5 {[%clk 0:01:52]}  Nc5 {[%clk 0:02:41]} 10. Bc2 {[%clk 0:01:48]}  c6 {[%clk 0:02:36]} 11. b4 {[%clk 0:01:39]}  Ncd7 {[%clk 0:02:33]} 12. dxc6 {[%clk 0:01:39]}  Bxc6 {[%clk 0:02:31]} 13. Qxd6 {[%clk 0:01:39]}  Bb7 {[%clk 0:02:28]} 14. Nb5 {[%clk 0:01:19]}  Rc8 {[%clk 0:02:19]} 15. Qd2 {[%clk 0:00:44]}  Bf8 {[%clk 0:02:18]} 16. Bb3 {[%clk 0:00:35]}  a6 {[%clk 0:02:17]} 17. Nd6+ {[%clk 0:00:35]}  Bxd6 {[%clk 0:02:15]} 18. Qxd6 {[%clk 0:00:36]}  Rc6 {[%clk 0:02:14]} 19. Qd2 {[%clk 0:00:34]}  O-O {[%clk 0:02:13]} 20. O-O {[%clk 0:00:33]}  Qe7 {[%clk 0:02:05]} 21. Rfd1 {[%clk 0:00:26]}  Rfc8 {[%clk 0:02:01]} 22. a3 {[%clk 0:00:19]}  Nf8 {[%clk 0:02:01]} 23. Nc3 {[%clk 0:00:18]}  a5 {[%clk 0:01:53]} 24. Nd5 {[%clk 0:00:17]}  Nxd5 {[%clk 0:01:45]} 25. exd5 {[%clk 0:00:15]}  Rd6 {[%clk 0:01:37]} 26. c5 {[%clk 0:00:15]}  bxc5 {[%clk 0:01:32]} 27. bxc5 {[%clk 0:00:15]}  Rdd8 {[%clk 0:01:32]} 28. d6 {[%clk 0:00:10]}  Qd7 {[%clk 0:01:26]} 29. Bg5 {[%clk 0:00:09]}  Re8 {[%clk 0:01:24]} 30. Qxa5 {[%clk 0:00:09]}  Ne6 {[%clk 0:01:21]} 31. Be3 {[%clk 0:00:09]}  Qc6 {[%clk 0:01:19]} 32. Bd5 {[%clk 0:00:07]}  Qd7 {[%clk 0:01:17]} 33. Bxb7 {[%clk 0:00:07]}  Qxb7 {[%clk 0:01:17]} 34. d7 {[%clk 0:00:08]}  e4 {[%clk 0:01:16]} 35. dxc8=Q {[%clk 0:00:04]}  Qxc8 {[%clk 0:01:14]} 36. fxe4 {[%clk 0:00:04]}  Qc6 {[%clk 0:01:11]} 37. Qb4 {[%clk 0:00:03]}  Nc7 {[%clk 0:01:05]} 38. Rd6 {[%clk 0:00:03]}  Qa8 {[%clk 0:01:04]} 39. c6 {[%clk 0:00:03]}  Na6 {[%clk 0:00:59]} 40. Qc4 {[%clk 0:00:04]}  Nc7 {[%clk 0:00:57]} 41. Rad1 {[%clk 0:00:04]}  Qxa3 {[%clk 0:00:56]} 42. R6d3 {[%clk 0:00:03]}  Qb2 {[%clk 0:00:52]} 43. Rd7 {[%clk 0:00:03]}  Ne6 {[%clk 0:00:51]} 44. h3 {[%clk 0:00:03]}  Qa3 {[%clk 0:00:48]} 45. Bh6 {[%clk 0:00:03]}  g5 {[%clk 0:00:38]} 46. Kh1 {[%clk 0:00:03]}  g4 {[%clk 0:00:37]} 47. hxg4 {[%clk 0:00:04]}  Qg3 {[%clk 0:00:36]} 48. Qd3 {[%clk 0:00:03]}  Qxg4 {[%clk 0:00:34]} 49. Qh3 {[%clk 0:00:04]}  Qxe4 {[%clk 0:00:33]} 50. Qg3+ {[%clk 0:00:04]}  Qg6 {[%clk 0:00:32]} 51. Qxg6+ {[%clk 0:00:04]}  hxg6 {[%clk 0:00:32]} 52. c7 {[%clk 0:00:05]}  Kh7 {[%clk 0:00:31]} 53. Be3 {[%clk 0:00:04]}  Rc8 {[%clk 0:00:30]} 54. Bb6 {[%clk 0:00:04]}  Kg7 {[%clk 0:00:28]} 55. Rd8 {[%clk 0:00:04]}  Rxc7 {[%clk 0:00:25]} 56. Bxc7 {[%clk 0:00:04]}  Nxc7 {[%clk 0:00:26]} 57. R1d6 {[%clk 0:00:03]}  Ne6 {[%clk 0:00:25]} 58. Rxe6 {[%clk 0:00:03]}  fxe6 {[%clk 0:00:26]} 59. Kg1 {[%clk 0:00:03]}  Kf6 {[%clk 0:00:26]} 60. Kf2 {[%clk 0:00:04]}  Ke7 {[%clk 0:00:26]} 61. Ra8 {[%clk 0:00:05]}  Kf6 {[%clk 0:00:26]} 62. Kf3 {[%clk 0:00:06]}  Kf5 {[%clk 0:00:26]} 63. Ra5+ {[%clk 0:00:07]}  e5 {[%clk 0:00:24]} 64. g3 {[%clk 0:00:08]}  Ke6 {[%clk 0:00:23]} 65. Rb5 {[%clk 0:00:09]}  Kf5 {[%clk 0:00:23]} 66. Ra5 {[%clk 0:00:10]}  Ke6 {[%clk 0:00:23]} 67. Ke4 {[%clk 0:00:11]}  Kd6 {[%clk 0:00:23]} 68. Rxe5 {[%clk 0:00:11]}  Kc6 {[%clk 0:00:21]} 69. g4 {[%clk 0:00:12]}  Kd6 {[%clk 0:00:21]} 70. g5 {[%clk 0:00:13]}  Kd7 {[%clk 0:00:21]} 71. Kd5 {[%clk 0:00:12]}  Kd8 {[%clk 0:00:21]} 72. Re6 {[%clk 0:00:13]}  Kd7 {[%clk 0:00:21]} 73. Ke5 {[%clk 0:00:14]}  Kc7 {[%clk 0:00:21]} 74. Kf6 {[%clk 0:00:15]}  Kd7 {[%clk 0:00:22]} 75. Re1 {[%clk 0:00:15]}  Kd6 {[%clk 0:00:23]} 76. Kxg6 {[%clk 0:00:16]}  Kd5 {[%clk 0:00:22]} 77. Re7 {[%clk 0:00:15]}  Kd4 {[%clk 0:00:23]} 78. Kf7 {[%clk 0:00:16]}  Kd5 {[%clk 0:00:24]} 79. g6 {[%clk 0:00:16]}  Kd6 {[%clk 0:00:25]} 80. g7 {[%clk 0:00:16]}  Kc6 {[%clk 0:00:26]} 81. g8=R {[%clk 0:00:15]}  Kd6 {[%clk 0:00:27]} 82. Rd8+ {[%clk 0:00:15]} 1-0


[Site "https://www.chess.com"]